[Event "Titled Tuesday Blitz May 9 Early 2023"]
[White "Yaniuk, Volodymyr"]
[Black "Morefield, Jason"]
[WhiteFideId "14133083"]
[BlackFideId "30920825"]
[WhiteElo "2141"]
[BlackElo "2171"]
[Result "0-1"]
[Round "10"]
[TimeControl "180+2"]
[Date "2023.05.09"]
[WhiteClock "0:00:31"]
[BlackClock "0:01:36"]

1. d4 {[%clk 0:03:00]}  Nf6 {[%clk 0:03:00]} 2. c4 {[%clk 0:03:00]}  g6 {[%clk 0:02:59]} 3. Nc3 {[%clk 0:03:00]}  Bg7 {[%clk 0:03:00]} 4. e4 {[%clk 0:03:00]}  d6 {[%clk 0:03:00]} 5. Nf3 {[%clk 0:03:01]}  O-O {[%clk 0:03:01]} 6. Be2 {[%clk 0:03:02]}  e5 {[%clk 0:03:01]} 7. O-O {[%clk 0:03:02]}  exd4 {[%clk 0:03:01]} 8. Nxd4 {[%clk 0:03:03]}  Re8 {[%clk 0:03:02]} 9. f3 {[%clk 0:03:02]}  c6 {[%clk 0:03:03]} 10. Be3 {[%clk 0:02:56]}  Nbd7 {[%clk 0:03:02]} 11. Qd2 {[%clk 0:02:55]}  a6 {[%clk 0:02:53]} 12. Bf2 {[%clk 0:02:55]}  Qc7 {[%clk 0:02:53]} 13. Rac1 {[%clk 0:02:53]}  Nc5 {[%clk 0:02:47]} 14. b4 {[%clk 0:02:51]}  Ne6 {[%clk 0:02:47]} 15. a4 {[%clk 0:02:45]}  a5 {[%clk 0:02:45]} 16. b5 {[%clk 0:02:42]}  Nc5 {[%clk 0:02:45]} 17. Rb1 {[%clk 0:02:33]}  Be6 {[%clk 0:02:31]} 18. Rfd1 {[%clk 0:02:29]}  Rad8 {[%clk 0:02:30]} 19. Nxe6 {[%clk 0:02:23]}  fxe6 {[%clk 0:02:17]} 20. Qc2 {[%clk 0:02:05]}  Nfd7 {[%clk 0:02:12]} 21. Bg3 {[%clk 0:01:57]}  Ne5 {[%clk 0:02:07]} 22. bxc6 {[%clk 0:01:52]}  bxc6 {[%clk 0:02:06]} 23. Qd2 {[%clk 0:01:47]}  Nf7 {[%clk 0:02:03]} 24. Bf2 {[%clk 0:01:32]}  Rb8 {[%clk 0:01:59]} 25. Bf1 {[%clk 0:01:00]}  Rb4 {[%clk 0:01:51]} 26. Qc2 {[%clk 0:00:47]}  Reb8 {[%clk 0:01:45]} 27. h4 {[%clk 0:00:43]}  Bxc3 {[%clk 0:01:41]} 28. Rbc1 {[%clk 0:00:41]}  Bg7 {[%clk 0:01:38]} 29. h5 {[%clk 0:00:40]}  Rb2 {[%clk 0:01:36]} 30. hxg6 {[%clk 0:00:31]}  hxg6 {[%clk 0:01:36]} 0-1


[Site "https://www.chess.com"]

[Event "Titled Tuesday Blitz May 9 Early 2023"]
[White "Cherniaiev, Tykhon"]
[Black "wqws"]
[WhiteFideId "14182360"]
[WhiteElo "2450"]
[BlackElo "2567"]
[Result "1-0"]
[Round "10"]
[TimeControl "180+2"]
[Date "2023.05.09"]
[WhiteClock "0:00:05"]
[BlackClock "0:00:00"]

1. Nf3 {[%clk 0:03:00]}  d5 {[%clk 0:02:58]} 2. d4 {[%clk 0:03:00]}  Nf6 {[%clk 0:02:57]} 3. c4 {[%clk 0:03:01]}  e6 {[%clk 0:02:57]} 4. Nc3 {[%clk 0:03:01]}  Bb4 {[%clk 0:02:57]} 5. Bg5 {[%clk 0:03:01]}  h6 {[%clk 0:02:57]} 6. Bxf6 {[%clk 0:03:02]}  Qxf6 {[%clk 0:02:58]} 7. cxd5 {[%clk 0:03:02]}  exd5 {[%clk 0:02:58]} 8. Qa4+ {[%clk 0:03:03]}  Nc6 {[%clk 0:02:58]} 9. e3 {[%clk 0:03:03]}  O-O {[%clk 0:02:58]} 10. Bb5 {[%clk 0:03:02]}  Bxc3+ {[%clk 0:02:55]} 11. bxc3 {[%clk 0:03:02]}  Ne7 {[%clk 0:02:56]} 12. Be2 {[%clk 0:03:00]}  c6 {[%clk 0:02:52]} 13. O-O {[%clk 0:03:00]}  Bf5 {[%clk 0:02:45]} 14. c4 {[%clk 0:02:56]}  dxc4 {[%clk 0:02:44]} 15. Qxc4 {[%clk 0:02:57]}  Ng6 {[%clk 0:02:36]} 16. a4 {[%clk 0:02:52]}  Rfe8 {[%clk 0:02:28]} 17. a5 {[%clk 0:02:52]}  Rad8 {[%clk 0:02:27]} 18. Rfc1 {[%clk 0:02:49]}  Be4 {[%clk 0:02:25]} 19. Qb4 {[%clk 0:02:37]}  Nh4 {[%clk 0:01:37]} 20. Nxh4 {[%clk 0:02:28]}  Qxh4 {[%clk 0:01:38]} 21. Qxb7 {[%clk 0:02:06]}  c5 {[%clk 0:01:36]} 22. Qxa7 {[%clk 0:00:50]}  cxd4 {[%clk 0:01:36]} 23. f3 {[%clk 0:00:48]}  dxe3 {[%clk 0:00:47]} 24. fxe4 {[%clk 0:00:44]}  Qf2+ {[%clk 0:00:47]} 25. Kh1 {[%clk 0:00:44]}  Qxe2 {[%clk 0:00:47]} 26. Re1 {[%clk 0:00:43]}  Qf2 {[%clk 0:00:36]} 27. Qxe3 {[%clk 0:00:41]}  Qc2 {[%clk 0:00:31]} 28. a6 {[%clk 0:00:33]}  Rd2 {[%clk 0:00:26]} 29. Qf3 {[%clk 0:00:18]}  Rf2 {[%clk 0:00:22]} 30. Qg3 {[%clk 0:00:15]}  Re2 {[%clk 0:00:15]} 31. a7 {[%clk 0:00:10]}  Rxe1+ {[%clk 0:00:06]} 32. Qxe1 {[%clk 0:00:11]}  Qc6 {[%clk 0:00:05]} 33. h3 {[%clk 0:00:09]}  Kh7 {[%clk 0:00:05]} 34. Qe3 {[%clk 0:00:07]}  g6 {[%clk 0:00:04]} 35. Qf3 {[%clk 0:00:07]}  Kg7 {[%clk 0:00:04]} 36. Qf4 {[%clk 0:00:08]}  Ra8 {[%clk 0:00:02]} 37. Qe5+ {[%clk 0:00:07]}  Qf6 {[%clk 0:00:03]} 38. Qa5 {[%clk 0:00:06]}  Qe6 {[%clk 0:00:02]} 39. e5 {[%clk 0:00:05]}  Qf5 {[%clk 0:00:03]} 40. Qd5 {[%clk 0:00:04]}  Qc8 {[%clk 0:00:02]} 41. e6 {[%clk 0:00:04]}  fxe6 {[%clk 0:00:02]} 42. Qe5+ {[%clk 0:00:04]}  Kg8 {[%clk 0:00:02]} 43. Qf6 {[%clk 0:00:04]}  Qe8 {[%clk 0:00:02]} 44. Rd1 {[%clk 0:00:05]}  Rxa7 {[%clk 0:00:00]} 45. Rd8 {[%clk 0:00:05]} 1-0


[Site "https://www.chess.com"]

[Event "Titled Tuesday Blitz May 9 Early 2023"]
[White "Djordjevic, Vuk"]
[Black "HamedWafa4"]
[WhiteFideId "902098"]
[WhiteElo "2452"]
[BlackElo "2557"]
[Result "1/2-1/2"]
[Round "10"]
[TimeControl "180+2"]
[Date "2023.05.09"]
[WhiteClock "0:00:03"]
[BlackClock "0:00:10"]

1. d4 {[%clk 0:03:00]}  Nf6 {[%clk 0:02:59]} 2. Bg5 {[%clk 0:03:01]}  b6 {[%clk 0:02:57]} 3. Bxf6 {[%clk 0:03:00]}  exf6 {[%clk 0:02:57]} 4. Nf3 {[%clk 0:02:57]}  Bb7 {[%clk 0:02:57]} 5. e3 {[%clk 0:02:57]}  f5 {[%clk 0:02:57]} 6. Bd3 {[%clk 0:02:56]}  g6 {[%clk 0:02:57]} 7. O-O {[%clk 0:02:54]}  Bg7 {[%clk 0:02:58]} 8. c4 {[%clk 0:02:49]}  O-O {[%clk 0:02:57]} 9. Nc3 {[%clk 0:02:49]}  d6 {[%clk 0:02:57]} 10. b4 {[%clk 0:02:42]}  Nd7 {[%clk 0:02:56]} 11. Rb1 {[%clk 0:02:42]}  Re8 {[%clk 0:02:54]} 12. a4 {[%clk 0:02:39]}  a5 {[%clk 0:02:54]} 13. b5 {[%clk 0:02:26]}  Nf6 {[%clk 0:02:42]} 14. Nd2 {[%clk 0:02:16]}  Bh6 {[%clk 0:02:21]} 15. Be2 {[%clk 0:02:05]}  Qe7 {[%clk 0:02:03]} 16. Bf3 {[%clk 0:01:43]}  Ne4 {[%clk 0:01:56]} 17. Rb3 {[%clk 0:01:15]}  Nxd2 {[%clk 0:01:44]} 18. Bxb7 {[%clk 0:01:03]}  Nxf1 {[%clk 0:01:43]} 19. Nd5 {[%clk 0:01:02]}  Qh4 {[%clk 0:01:16]} 20. Qxf1 {[%clk 0:00:49]}  Rab8 {[%clk 0:01:16]} 21. Bc6 {[%clk 0:00:48]}  Rec8 {[%clk 0:00:59]} 22. Bd7 {[%clk 0:00:48]}  Rd8 {[%clk 0:00:57]} 23. Bc6 {[%clk 0:00:49]}  Rdc8 {[%clk 0:00:53]} 24. g3 {[%clk 0:00:33]}  Qg5 {[%clk 0:00:46]} 25. h4 {[%clk 0:00:28]}  Qd8 {[%clk 0:00:46]} 26. Rd3 {[%clk 0:00:27]}  Bg7 {[%clk 0:00:44]} 27. Qe2 {[%clk 0:00:21]}  h5 {[%clk 0:00:42]} 28. e4 {[%clk 0:00:21]}  fxe4 {[%clk 0:00:33]} 29. Qxe4 {[%clk 0:00:22]}  Qf8 {[%clk 0:00:24]} 30. Ne7+ {[%clk 0:00:18]}  Kh7 {[%clk 0:00:25]} 31. Nxc8 {[%clk 0:00:15]}  Rxc8 {[%clk 0:00:26]} 32. Rf3 {[%clk 0:00:15]}  f5 {[%clk 0:00:25]} 33. Qd3 {[%clk 0:00:06]}  Qf6 {[%clk 0:00:24]} 34. Re3 {[%clk 0:00:04]}  Rf8 {[%clk 0:00:23]} 35. d5 {[%clk 0:00:04]}  Rf7 {[%clk 0:00:22]} 36. Kg2 {[%clk 0:00:04]}  Re7 {[%clk 0:00:22]} 37. Qe2 {[%clk 0:00:03]}  Rxe3 {[%clk 0:00:20]} 38. Qxe3 {[%clk 0:00:04]}  Qe5 {[%clk 0:00:20]} 39. Qg5 {[%clk 0:00:05]}  Bf6 {[%clk 0:00:20]} 40. Qd2 {[%clk 0:00:05]}  Qe4+ {[%clk 0:00:20]} 41. Kg1 {[%clk 0:00:05]}  Be5 {[%clk 0:00:20]} 42. Qc1 {[%clk 0:00:04]}  f4 {[%clk 0:00:20]} 43. gxf4 {[%clk 0:00:03]}  Bxf4 {[%clk 0:00:20]} 44. Qd1 {[%clk 0:00:03]}  Be5 {[%clk 0:00:19]} 45. Bd7 {[%clk 0:00:02]}  Qxh4 {[%clk 0:00:19]} 46. Qf3 {[%clk 0:00:02]}  Kg7 {[%clk 0:00:15]} 47. Be6 {[%clk 0:00:02]}  Qf6 {[%clk 0:00:15]} 48. Qh3 {[%clk 0:00:02]}  Qg5+ {[%clk 0:00:15]} 49. Kf1 {[%clk 0:00:03]}  Qc1+ {[%clk 0:00:14]} 50. Kg2 {[%clk 0:00:03]}  Qxc4 {[%clk 0:00:12]} 51. Qf3 {[%clk 0:00:03]}  Qe4 {[%clk 0:00:12]} 52. Qxe4 {[%clk 0:00:02]}  Kf6 {[%clk 0:00:12]} 53. Qf3+ {[%clk 0:00:02]}  Kg5 {[%clk 0:00:12]} 54. Qf7 {[%clk 0:00:02]}  Kh6 {[%clk 0:00:12]} 55. Qg8 {[%clk 0:00:03]}  Bg7 {[%clk 0:00:10]} 56. Bf7 {[%clk 0:00:03]} 1/2-1/2


[Site "https://www.chess.com"]

[Event "Titled Tuesday Blitz May 9 Early 2023"]
[White "Jaskolka, Tomasz"]
[Black "Mitusov, Semen"]
[WhiteFideId "1170791"]
[BlackFideId "14151049"]
[WhiteElo "2155"]
[BlackElo "2389"]
[Result "0-1"]
[Round "10"]
[TimeControl "180+2"]
[Date "2023.05.09"]
[WhiteClock "0:00:15"]
[BlackClock "0:00:39"]

1. d4 {[%clk 0:03:00]}  d5 {[%clk 0:02:59]} 2. Nc3 {[%clk 0:03:01]}  Nf6 {[%clk 0:02:57]} 3. Bf4 {[%clk 0:03:01]}  e6 {[%clk 0:02:53]} 4. e3 {[%clk 0:02:58]}  a6 {[%clk 0:02:49]} 5. Nf3 {[%clk 0:02:54]}  c5 {[%clk 0:02:49]} 6. a3 {[%clk 0:02:48]}  Nc6 {[%clk 0:02:49]} 7. Ne5 {[%clk 0:02:47]}  Bd6 {[%clk 0:02:47]} 8. Nxc6 {[%clk 0:02:47]}  bxc6 {[%clk 0:02:47]} 9. Bxd6 {[%clk 0:02:47]}  Qxd6 {[%clk 0:02:48]} 10. dxc5 {[%clk 0:02:45]}  Qxc5 {[%clk 0:02:49]} 11. Qd4 {[%clk 0:02:45]}  Qd6 {[%clk 0:02:46]} 12. Na4 {[%clk 0:02:43]}  O-O {[%clk 0:02:45]} 13. Be2 {[%clk 0:02:37]}  Rb8 {[%clk 0:02:42]} 14. b4 {[%clk 0:02:34]}  e5 {[%clk 0:02:37]} 15. Qc5 {[%clk 0:02:33]}  Qc7 {[%clk 0:02:29]} 16. O-O {[%clk 0:02:28]}  Ne4 {[%clk 0:02:28]} 17. Qa5 {[%clk 0:02:26]}  Qa7 {[%clk 0:02:26]} 18. Rfd1 {[%clk 0:01:55]}  Nd6 {[%clk 0:02:18]} 19. Qc5 {[%clk 0:01:44]}  Qxc5 {[%clk 0:02:04]} 20. Nxc5 {[%clk 0:01:43]}  Ra8 {[%clk 0:02:03]} 21. c4 {[%clk 0:01:37]}  Nxc4 {[%clk 0:01:51]} 22. Bxc4 {[%clk 0:01:36]}  dxc4 {[%clk 0:01:52]} 23. Rac1 {[%clk 0:01:36]}  a5 {[%clk 0:01:53]} 24. Rxc4 {[%clk 0:01:35]}  axb4 {[%clk 0:01:53]} 25. axb4 {[%clk 0:01:36]}  Rb8 {[%clk 0:01:50]} 26. f3 {[%clk 0:01:12]}  h6 {[%clk 0:01:50]} 27. Kf2 {[%clk 0:01:12]}  Rb5 {[%clk 0:01:48]} 28. Rd6 {[%clk 0:01:10]}  Bf5 {[%clk 0:01:37]} 29. Rxc6 {[%clk 0:01:03]}  Rfb8 {[%clk 0:01:34]} 30. Na6 {[%clk 0:00:53]}  R8b6 {[%clk 0:01:31]} 31. Rxb6 {[%clk 0:00:46]}  Rxb6 {[%clk 0:01:32]} 32. Nc5 {[%clk 0:00:47]}  f6 {[%clk 0:01:28]} 33. e4 {[%clk 0:00:47]}  Bg6 {[%clk 0:01:27]} 34. Nd7 {[%clk 0:00:38]}  Rb7 {[%clk 0:01:27]} 35. Nc5 {[%clk 0:00:39]}  Rb5 {[%clk 0:01:24]} 36. Nd3 {[%clk 0:00:38]}  Bf7 {[%clk 0:01:22]} 37. Rc8+ {[%clk 0:00:38]}  Kh7 {[%clk 0:01:22]} 38. Rc5 {[%clk 0:00:38]}  Rb7 {[%clk 0:01:21]} 39. Ke3 {[%clk 0:00:35]}  h5 {[%clk 0:01:21]} 40. h4 {[%clk 0:00:35]}  Kg6 {[%clk 0:01:19]} 41. g3 {[%clk 0:00:35]}  Kh7 {[%clk 0:01:18]} 42. Kd2 {[%clk 0:00:30]}  Be8 {[%clk 0:01:17]} 43. Kc3 {[%clk 0:00:30]}  Ra7 {[%clk 0:01:16]} 44. Ra5 {[%clk 0:00:21]}  Rd7 {[%clk 0:01:12]} 45. b5 {[%clk 0:00:17]}  Rb7 {[%clk 0:01:08]} 46. Kc4 {[%clk 0:00:14]}  Kg6 {[%clk 0:01:04]} 47. Nc5 {[%clk 0:00:14]}  Rb6 {[%clk 0:01:04]} 48. Kb4 {[%clk 0:00:13]}  Rd6 {[%clk 0:01:03]} 49. Ra6 {[%clk 0:00:12]}  Rd4+ {[%clk 0:01:03]} 50. Kc3 {[%clk 0:00:12]}  Bxb5 {[%clk 0:01:02]} 51. Rb6 {[%clk 0:00:11]}  Rc4+ {[%clk 0:01:02]} 52. Kb3 {[%clk 0:00:11]}  Rxc5 {[%clk 0:01:03]} 53. Kb4 {[%clk 0:00:11]}  Rc4+ {[%clk 0:01:01]} 54. Kxb5 {[%clk 0:00:11]}  Rc3 {[%clk 0:01:02]} 55. f4 {[%clk 0:00:12]}  Rxg3 {[%clk 0:00:58]} 56. fxe5 {[%clk 0:00:12]}  Rb3+ {[%clk 0:00:59]} 57. Kc5 {[%clk 0:00:11]}  Rxb6 {[%clk 0:01:00]} 58. Kxb6 {[%clk 0:00:11]}  fxe5 {[%clk 0:01:00]} 59. Kc5 {[%clk 0:00:12]}  Kf6 {[%clk 0:00:49]} 60. Kd6 {[%clk 0:00:12]}  g5 {[%clk 0:00:44]} 61. hxg5+ {[%clk 0:00:13]}  Kxg5 {[%clk 0:00:45]} 62. Kxe5 {[%clk 0:00:13]}  h4 {[%clk 0:00:46]} 63. Kd6 {[%clk 0:00:11]}  h3 {[%clk 0:00:44]} 64. e5 {[%clk 0:00:12]}  h2 {[%clk 0:00:45]} 65. e6 {[%clk 0:00:13]}  h1=Q {[%clk 0:00:45]} 66. e7 {[%clk 0:00:14]}  Qa8 {[%clk 0:00:39]} 67. Ke6 {[%clk 0:00:15]} 0-1


[Site "https://www.chess.com"]

[Event "Titled Tuesday Blitz May 9 Early 2023"]
[White "Staudenhocker43"]
[Black "Weishaeutel, Moritz"]
[BlackFideId "12967300"]
[WhiteElo "2528"]
[BlackElo "2301"]
[Result "1/2-1/2"]
[Round "10"]
[TimeControl "180+2"]
[Date "2023.05.09"]
[WhiteClock "0:01:10"]
[BlackClock "0:00:03"]

1. d4 {[%clk 0:03:00]}  Nf6 {[%clk 0:02:59]} 2. Bg5 {[%clk 0:03:00]}  d5 {[%clk 0:02:57]} 3. e3 {[%clk 0:03:01]}  c6 {[%clk 0:02:54]} 4. Bxf6 {[%clk 0:02:54]}  exf6 {[%clk 0:02:55]} 5. c4 {[%clk 0:02:48]}  dxc4 {[%clk 0:02:51]} 6. Bxc4 {[%clk 0:02:49]}  Bd6 {[%clk 0:02:51]} 7. Ne2 {[%clk 0:02:45]}  O-O {[%clk 0:02:52]} 8. O-O {[%clk 0:02:45]}  Nd7 {[%clk 0:02:49]} 9. Nd2 {[%clk 0:02:42]}  Nb6 {[%clk 0:02:46]} 10. Bb3 {[%clk 0:02:42]}  Qc7 {[%clk 0:02:40]} 11. g3 {[%clk 0:02:40]}  Bh3 {[%clk 0:02:40]} 12. Re1 {[%clk 0:02:40]}  Rfe8 {[%clk 0:02:39]} 13. Nc4 {[%clk 0:02:38]}  Bb4 {[%clk 0:02:29]} 14. Nc3 {[%clk 0:02:38]}  Nd5 {[%clk 0:02:21]} 15. Rc1 {[%clk 0:02:37]}  Qd7 {[%clk 0:02:20]} 16. Qf3 {[%clk 0:02:33]}  Bg4 {[%clk 0:02:14]} 17. Qg2 {[%clk 0:02:32]}  Re7 {[%clk 0:01:52]} 18. Bd1 {[%clk 0:02:31]}  Bh3 {[%clk 0:01:51]} 19. Qf3 {[%clk 0:02:31]}  Rae8 {[%clk 0:01:50]} 20. a3 {[%clk 0:02:25]}  Bxc3 {[%clk 0:01:49]} 21. bxc3 {[%clk 0:02:25]}  Be6 {[%clk 0:01:46]} 22. Nd2 {[%clk 0:02:21]}  f5 {[%clk 0:01:39]} 23. Qg2 {[%clk 0:02:17]}  f6 {[%clk 0:01:30]} 24. Bf3 {[%clk 0:02:17]}  Bf7 {[%clk 0:01:28]} 25. c4 {[%clk 0:02:14]}  Nc7 {[%clk 0:01:20]} 26. c5 {[%clk 0:02:03]}  Nd5 {[%clk 0:01:02]} 27. Red1 {[%clk 0:02:01]}  Nxe3 {[%clk 0:00:48]} 28. fxe3 {[%clk 0:02:00]}  Rxe3 {[%clk 0:00:49]} 29. Nf1 {[%clk 0:01:59]}  Rxa3 {[%clk 0:00:48]} 30. d5 {[%clk 0:01:50]}  cxd5 {[%clk 0:00:41]} 31. Bxd5 {[%clk 0:01:47]}  Bxd5 {[%clk 0:00:38]} 32. Qxd5+ {[%clk 0:01:47]}  Qxd5 {[%clk 0:00:38]} 33. Rxd5 {[%clk 0:01:47]}  Re5 {[%clk 0:00:30]} 34. Rd8+ {[%clk 0:01:44]}  Kf7 {[%clk 0:00:30]} 35. Rd7+ {[%clk 0:01:44]}  Re7 {[%clk 0:00:31]} 36. Rxe7+ {[%clk 0:01:37]}  Kxe7 {[%clk 0:00:31]} 37. Rb1 {[%clk 0:01:38]}  b6 {[%clk 0:00:27]} 38. cxb6 {[%clk 0:01:35]}  axb6 {[%clk 0:00:28]} 39. Rxb6 {[%clk 0:01:35]}  Kf7 {[%clk 0:00:29]} 40. Rb2 {[%clk 0:01:32]}  g5 {[%clk 0:00:28]} 41. Kf2 {[%clk 0:01:31]}  Kg6 {[%clk 0:00:27]} 42. Nd2 {[%clk 0:01:29]}  h5 {[%clk 0:00:27]} 43. Nf3 {[%clk 0:01:28]}  h4 {[%clk 0:00:20]} 44. gxh4 {[%clk 0:01:25]}  g4 {[%clk 0:00:20]} 45. Nd4 {[%clk 0:01:22]}  Rh3 {[%clk 0:00:21]} 46. Ne2 {[%clk 0:01:15]}  Rxh2+ {[%clk 0:00:19]} 47. Kg1 {[%clk 0:01:15]}  Rxh4 {[%clk 0:00:18]} 48. Rb5 {[%clk 0:01:11]}  Rh8 {[%clk 0:00:06]} 49. Nf4+ {[%clk 0:01:10]}  Kg5 {[%clk 0:00:07]} 50. Ne6+ {[%clk 0:01:10]}  Kg6 {[%clk 0:00:03]} 51. Nf4+ {[%clk 0:01:10]} 1/2-1/2


[Site "https://www.chess.com"]

[Event "Titled Tuesday Blitz May 9 Early 2023"]
[White "Tasev, Dejan"]
[Black "Hossain, Enamul"]
[WhiteFideId "936618"]
[BlackFideId "10200649"]
[WhiteElo "2244"]
[BlackElo "2433"]
[Result "1/2-1/2"]
[Round "10"]
[TimeControl "180+2"]
[Date "2023.05.09"]
[WhiteClock "0:00:29"]
[BlackClock "0:00:11"]

1. e4 {[%clk 0:03:00]}  c5 {[%clk 0:02:59]} 2. Nf3 {[%clk 0:03:00]}  Nc6 {[%clk 0:02:59]} 3. Nc3 {[%clk 0:02:59]}  e5 {[%clk 0:02:57]} 4. Bc4 {[%clk 0:02:58]}  Be7 {[%clk 0:02:55]} 5. d3 {[%clk 0:02:57]}  d6 {[%clk 0:02:55]} 6. Nd2 {[%clk 0:02:57]}  Nf6 {[%clk 0:02:50]} 7. Nf1 {[%clk 0:02:57]}  Bg4 {[%clk 0:02:50]} 8. f3 {[%clk 0:02:54]}  Be6 {[%clk 0:02:50]} 9. Ne3 {[%clk 0:02:53]}  O-O {[%clk 0:02:50]} 10. O-O {[%clk 0:02:53]}  Nb4 {[%clk 0:02:44]} 11. a3 {[%clk 0:02:50]}  d5 {[%clk 0:02:37]} 12. exd5 {[%clk 0:02:43]}  Nbxd5 {[%clk 0:02:36]} 13. Nexd5 {[%clk 0:02:37]}  Nxd5 {[%clk 0:02:37]} 14. Nxd5 {[%clk 0:02:27]}  Bxd5 {[%clk 0:02:37]} 15. Be3 {[%clk 0:02:24]}  Qd7 {[%clk 0:02:22]} 16. a4 {[%clk 0:02:20]}  Rad8 {[%clk 0:02:12]} 17. b3 {[%clk 0:02:16]}  b6 {[%clk 0:01:46]} 18. Qe1 {[%clk 0:02:11]}  Rfe8 {[%clk 0:01:43]} 19. Qg3 {[%clk 0:02:08]}  Bf8 {[%clk 0:01:36]} 20. Rae1 {[%clk 0:02:06]}  f6 {[%clk 0:01:34]} 21. h4 {[%clk 0:02:00]}  Bxc4 {[%clk 0:01:34]} 22. dxc4 {[%clk 0:01:57]}  Qf5 {[%clk 0:01:33]} 23. Qf2 {[%clk 0:01:42]}  e4 {[%clk 0:01:23]} 24. fxe4 {[%clk 0:01:34]}  Qxf2+ {[%clk 0:01:22]} 25. Bxf2 {[%clk 0:01:31]}  Rd2 {[%clk 0:01:22]} 26. Bg3 {[%clk 0:01:23]}  Rxc2 {[%clk 0:01:18]} 27. Rf3 {[%clk 0:01:22]}  Rd2 {[%clk 0:01:13]} 28. h5 {[%clk 0:01:15]}  h6 {[%clk 0:00:52]} 29. e5 {[%clk 0:01:11]}  fxe5 {[%clk 0:00:47]} 30. Rxe5 {[%clk 0:01:11]}  Rd1+ {[%clk 0:00:42]} 31. Kh2 {[%clk 0:00:57]}  Rxe5 {[%clk 0:00:40]} 32. Bxe5 {[%clk 0:00:56]}  Bd6 {[%clk 0:00:38]} 33. Bxd6 {[%clk 0:00:51]}  Rxd6 {[%clk 0:00:39]} 34. g4 {[%clk 0:00:50]}  a6 {[%clk 0:00:36]} 35. Kg3 {[%clk 0:00:49]}  b5 {[%clk 0:00:34]} 36. axb5 {[%clk 0:00:46]}  axb5 {[%clk 0:00:34]} 37. cxb5 {[%clk 0:00:43]}  Rb6 {[%clk 0:00:33]} 38. Kf2 {[%clk 0:00:42]}  Rxb5 {[%clk 0:00:32]} 39. Rf5 {[%clk 0:00:39]}  Rb4 {[%clk 0:00:26]} 40. Rxc5 {[%clk 0:00:39]}  Rxg4 {[%clk 0:00:25]} 41. Ke2 {[%clk 0:00:36]}  Rb4 {[%clk 0:00:19]} 42. Rc3 {[%clk 0:00:35]}  Rb5 {[%clk 0:00:18]} 43. Rh3 {[%clk 0:00:35]}  Kf7 {[%clk 0:00:17]} 44. Kd2 {[%clk 0:00:35]}  g6 {[%clk 0:00:15]} 45. hxg6+ {[%clk 0:00:35]}  Kxg6 {[%clk 0:00:15]} 46. Kc3 {[%clk 0:00:35]}  h5 {[%clk 0:00:15]} 47. b4 {[%clk 0:00:35]}  Kg5 {[%clk 0:00:13]} 48. Kc4 {[%clk 0:00:36]}  Rb8 {[%clk 0:00:13]} 49. b5 {[%clk 0:00:35]}  Kg4 {[%clk 0:00:13]} 50. Rh1 {[%clk 0:00:35]}  h4 {[%clk 0:00:13]} 51. Rg1+ {[%clk 0:00:35]}  Kf3 {[%clk 0:00:13]} 52. Rh1 {[%clk 0:00:33]}  Kg3 {[%clk 0:00:12]} 53. Rg1+ {[%clk 0:00:33]}  Kf3 {[%clk 0:00:12]} 54. Kc5 {[%clk 0:00:33]}  h3 {[%clk 0:00:11]} 55. Rh1 {[%clk 0:00:30]}  Kg2 {[%clk 0:00:10]} 56. Rxh3 {[%clk 0:00:29]}  Kxh3 {[%clk 0:00:11]} 57. b6 {[%clk 0:00:29]}  Rxb6 {[%clk 0:00:11]} 58. Kxb6 {[%clk 0:00:29]} 1/2-1/2


[Site "https://www.chess.com"]